[Event "GCT Superbet Romania 2024"]
[Site "Bucharest"]
[Date "2024.06.30"]
[Round "5.1"]
[White "Vachier-Lagrave, Maxime"]
[Black "Caruana, Fabiano"]
[Result "1/2-1/2"]
[ECO "C84"]
[WhiteElo "2732"]
[BlackElo "2805"]
[Annotator "TA"]
[PlyCount "56"]
[EventDate "2024.06.24"]
[EventType "tourn"]
[EventCountry "ROU"]
[SourceTitle "playchess.com"]
[Source "ChessBase"]
[SourceQuality "1"]
[TimeControl "7200+30"]

{[%evp 13,56,43,60,54,51,63,59,56,55,41,43,38,47,49,48,48,50,49,54,55,49,60,95,42,65,30,50,0,0,0,0,0,0,0,0,0,0,0,0,0,0,0,0,0,0]} 1. e4 {[%emt 0:00:03]} e5 {[%emt 0:00:07]} 2. Nf3 {[%emt 0:00:04]} Nc6 {[%emt 0:00:04]} 3. Bb5 {[%emt 0:00:02]} a6 {[%emt 0:00:04]} 4. Ba4 {[%emt 0:00:03]} Nf6 {[%emt 0:00:04]} 5. O-O {[%emt 0:00:05]} Nxe4 {[%emt 0:00:12]} 6. d4 {[%emt 0:00:06]} Be7 {[%emt 0:00:04]} 7. Re1 {[%emt 0:03:05]} b5 {[%emt 0:00:44][%cal Bb7b5,Bb5a4,Ba4a3][%mdl 32]} 8. Rxe4 {[%emt 0:00:11] [#] Black must now prevent Bb3.} ({But not} 8. dxe5 Nxf2 9. Kxf2 bxa4 $17) 8... d5 {[%emt 0:00:05]} 9. Nxe5 {[%emt 0:00:08]} Nxe5 {[%emt 0:00:04]} 10. Rxe5 {[%emt 0:00:07] White is slightly better.} bxa4 {[%emt 0:00:04]} 11. Qe2 {[%emt 0:00:12]} Be6 {[%emt 0:00:12]} 12. f4 {[%emt 0:00:28]} g6 {[%emt 0:00:18]} 13. Nc3 {[%emt 0:08:17][%cal Og2g4,Bb1c3,Bc3a4,Ba4c5][%mdl 32]} a3 {[%emt 0:00:54]} 14. b3 {[%emt 0:06:56]} Bb4 {[%emt 0:00:31]} 15. Na4 {[%emt 0:14:15]} ({Reject} 15. Rxd5 Qe7 16. Ne4 Bxd5 $15) 15... O-O {[%emt 0:00:55]} 16. c3 {[%emt 0:00:29]} Bd6 {[%emt 0:00:13][%cal Od8e7] [#]} 17. Nc5 $1 {[%emt 0:00:05]} Bf5 {[%emt 0:13:01]} (17... Re8 18. Qf2) 18. Bxa3 {[%emt 0:08:59] White is more active.} (18. Rxd5 $16 Re8 19. Re5) 18... Qh4 {[%emt 0:24:55]} 19. Rf1 {[%emt 0:15:32]} c6 {[%emt 0:14:53]} 20. Qe1 {[%emt 0:05:59]} (20. h3 $14) 20... Qxe1 $1 $11 {[%emt 0:03:16] The position is equal.} 21. Rexe1 {[%emt 0:02:30]} Rfe8 {[%emt 0:05:16]} 22. Bc1 {[%emt 0:03:21]} Bxc5 {[%emt 0:03:08]} 23. dxc5 {[%emt 0:00:26]} Bd3 {[%emt 0:00:04]} 24. Rxe8+ {[%emt 0:00:06]} Rxe8 {[%emt 0:00:03]} 25. Rd1 {[%emt 0:00:11]} Bc2 {[%emt 0:00:04]} 26. Rf1 {[%emt 0:00:03]} Bd3 {[%emt 0:00:14]} 27. Rd1 {[%emt 0:00:05]} Bc2 {[%emt 0:00:02]} 28. Rf1 {[%emt 0:00:02]} Bd3 {[%emt 0:01:22] Weighted Error Value: White=0.13 (very precise) /Black=0.06 (flawless) .  Mistake:       	White=2     	---        Inaccurate:     	White=1     	Black=1      OK:         	White=11    	Black=12     Best:        	White=1     	---        Strong:       	---       	Black=1} 1/2-1/2

[Event "GCT Superbet Romania 2024"]
[Site "Bucharest"]
[Date "2024.06.30"]
[Round "5.2"]
[White "Gukesh D"]
[Black "Abdusattorov, Nodirbek"]
[Result "1/2-1/2"]
[ECO "D02"]
[WhiteElo "2763"]
[BlackElo "2766"]
[Annotator "TA"]
[PlyCount "128"]
[EventDate "2024.06.24"]
[EventType "tourn"]
[EventCountry "ROU"]
[SourceTitle "playchess.com"]
[Source "ChessBase"]
[SourceQuality "1"]
[TimeControl "7200+30"]

{[%evp 54,128,37,35,35,31,33,22,26,29,39,0,0,7,0,0,0,0,0,0,0,0,0,0,22,8,9,6,18,9,16,27,27,0,0,0,15,15,16,16,37,20,15,0,22,5,29,29,16,16,16,23,45,45,45,45,60,6,6,0,0,0,0,0,0,0,0,0,0,0,0,0,0,0,0,0,0]} 1. d4 {[%emt 0:00:04]} d5 {[%emt 0:00:25]} 2. Nf3 {[%emt 0:00:08]} Nf6 {[%emt 0:00:07]} 3. g3 {[%emt 0:00:05]} c6 {[%emt 0:01:46]} 4. Bg2 {[%emt 0:00:13]} Bf5 {[%emt 0:00:05]} 5. Nh4 {[%emt 0:00:13]} Be6 {[%emt 0:04:23]} 6. O-O {[%emt 0:00:10] D02: 1 d4 d5 2 Nf3 sidelines, including 2...Nf6 3 g3 and 2...Nf6 3 Bf4.} g6 {[%emt 0:00:01]} 7. Nd2 {[%emt 0:00:12]} Bg7 {[%emt 0:00:06]} 8. c3 {[%emt 0:00:07]} O-O {[%emt 0:00:14]} 9. Re1 {[%emt 0:03:41]} a5 {[%emt 0:02:42]} 10. a4 {[%emt 0:03:10]} Nbd7 {[%emt 0:01:20]} 11. e4 {[%emt 0:00:08]} dxe4 {[%emt 0:00:29]} 12. Nxe4 {[%emt 0:00:06]} Bd5 {[%emt 0:04:18]} 13. Nxf6+ {[%emt 0:04:47]} Nxf6 {[%emt 0:00:50]} 14. Bf1 $146 {[%emt 0:09:49]} ({Predecessor:} 14. Nf3 Nd7 15. h4 c5 16. h5 cxd4 17. Nxd4 Bxg2 18. Kxg2 Nc5 19. hxg6 fxg6 {1-0 Alonso Rosell,A (2548)-Fressinet,L (2633) Chess24 Banter Blitz Cup 2019 (1.8)}) 14... Qd7 {[%emt 0:09:40]} 15. Ng2 {[%emt 0:12:41]} Be6 {[%emt 0:06:51]} 16. Nf4 {[%emt 0:02:35]} Bf5 {[%emt 0:00:23]} 17. Nd3 {[%emt 0:00:42]} Nd5 {[%emt 0:00:17]} 18. Qf3 {[%emt 0:11:08]} Qc7 {[%emt 0:01:53]} 19. h4 {[%emt 0:00:47]} h5 {[%emt 0:01:45]} 20. Ne5 {[%emt 0:06:42]} e6 {[%emt 0:14:26]} 21. Qe2 {[%emt 0:01:08]} c5 {[%emt 0:01:19]} 22. dxc5 {[%emt 0:00:59]} Rad8 {[%emt 0:08:31]} 23. Nc4 {[%emt 0:12:19]} Bg4 {[%emt 0:01:00]} 24. Qc2 {[%emt 0:04:54]} Qxc5 {[%emt 0:00:59]} 25. Qb3 {[%emt 0:00:39]} b6 {[%emt 0:04:20]} 26. Bg2 {[%emt 0:01:58]} Bf5 {[%emt 0:02:11]} 27. Bg5 {[%emt 0:08:37]} Rb8 {[%emt 0:06:20]} (27... Bd3 $5 28. Ne5 $16 (28. Bxd8 $2 Bxc4 29. Bxb6 Qc6 $19)) 28. Ne3 {[%emt 0:03:15]} Nxe3 {[%emt 0:01:09]} 29. Bxe3 {[%emt 0:00:05]} Qc7 {[%emt 0:00:05]} 30. Qb5 {[%emt 0:07:32]} e5 {[%emt 0:01:36]} 31. Red1 {[%emt 0:01:09]} Kh7 {[%emt 0:01:43]} 32. Qc6 {[%emt 0:06:54]} Qxc6 {[%emt 0:04:07]} 33. Bxc6 {[%emt 0:00:02]} Bh6 {[%emt 0:00:23]} 34. Bxh6 {[%emt 0:00:31]} Kxh6 {[%emt 0:00:07]} 35. Rd6 {[%emt 0:00:07]} Rfd8 {[%emt 0:04:46]} 36. Rad1 {[%emt 0:00:07]} Rxd6 {[%emt 0:00:04]} 37. Rxd6 {[%emt 0:00:04]} Kg7 $1 {[%emt 0:00:05]} 38. Bb5 {[%emt 0:07:01]} Be6 {[%emt 0:04:41]} 39. Kf1 {[%emt 0:01:52]} Kf8 {[%emt 0:00:08]} 40. Ke2 {[%emt 0:06:59]} Ke7 {[%emt 0:00:07]} 41. Rc6 {[%emt 0:00:38]} Rb7 {[%emt 0:01:57]} (41... Bd5 $5 42. Rc7+ $8 Kd6 43. Rd7+ Ke6 $16) 42. Ba6 {[%emt 0:00:06]} Ra7 {[%emt 0:16:46]} 43. Bb5 {[%emt 0:04:51]} (43. Rxb6 $2 {loses.} Rxa6 44. Rxa6 Bc4+ 45. Ke3 Bxa6 $19) 43... Rb7 {[%emt 0:00:08]} 44. Ba6 {[%emt 0:01:19]} Ra7 {[%emt 0:00:12]} 45. Bc8 {[%emt 0:00:05]} (45. Rxb6 $2 {is the wrong capture.} Rxa6 46. Rb7+ (46. Rxa6 $2 Bc4+ 47. Ke3 Bxa6 $19) 46... Kf6 $19) 45... Bxc8 {[%emt 0:00:06]} 46. Rxc8 {[%emt 0:00:05]} Rb7 {[%emt 0:00:06]} 47. Kd3 {[%emt 0:02:31]} Rd7+ {[%emt 0:00:16]} 48. Ke2 {[%emt 0:01:22]} Rd6 {[%emt 0:01:07]} 49. Rc7+ {[%emt 0:00:18]} Ke6 {[%emt 0:00:13]} 50. b4 {[%emt 0:00:25]} axb4 {[%emt 0:02:38]} 51. cxb4 {[%emt 0:00:02]} b5 {[%emt 0:04:20]} 52. axb5 {[%emt 0:00:49]} Rd4 {[%emt 0:00:08]} 53. b6 {[%emt 0:00:34]} Rxb4 {[%emt 0:00:32]} 54. b7 {[%emt 0:00:05]} f6 {[%emt 0:01:08]} 55. Kd3 {[%emt 0:02:46]} (55. Rg7 $14) 55... g5 $1 $11 {[%emt 0:00:54]} 56. hxg5 {[%emt 0:03:09]} (56. Kc3 $5 Rb1 $8 57. hxg5 fxg5 58. Kd3 $16) 56... fxg5 {[%emt 0:00:05]} 57. Rh7 {[%emt 0:00:48]} h4 {[%emt 0:00:34]} 58. gxh4 {[%emt 0:00:05]} gxh4 {[%emt 0:00:15]} 59. Rxh4 {[%emt 0:00:27]} Rxb7 {[%emt 0:00:06]} 60. f4 {[%emt 0:00:06]} Rb3+ {[%emt 0:00:11]} 61. Ke2 {[%emt 0:00:18]} exf4 {[%emt 0:00:17]} 62. Rxf4 {[%emt 0:00:05]} Rb5 {[%emt 0:00:02]} 63. Re4+ {[%emt 0:00:05]} Re5 {[%emt 0:00:05]} 64. Rxe5+ {[%emt 0:00:03]} Kxe5 {[%emt 0:00:01]} 1/2-1/2

[Event "GCT Superbet Romania 2024"]
[Site "Bucharest"]
[Date "2024.06.30"]
[Round "5.3"]
[White "So, Wesley"]
[Black "Praggnanandhaa R"]
[Result "1/2-1/2"]
[ECO "E62"]
[WhiteElo "2757"]
[BlackElo "2747"]
[Annotator "TA"]
[PlyCount "97"]
[EventDate "2024.06.24"]
[EventType "tourn"]
[EventCountry "ROU"]
[SourceTitle "playchess.com"]
[Source "ChessBase"]
[SourceQuality "1"]
[TimeControl "7200+30"]

{[%evp 10,97,33,26,29,35,41,42,57,20,53,31,28,31,29,20,36,56,38,25,26,-2,0,0,0,0,0,0,0,0,30,21,30,16,18,12,22,31,15,36,56,12,23,15,29,13,18,14,14,18,13,0,0,4,0,0,27,20,35,39,37,36,35,36,31,0,0,0,0,-531,0,0,0,0,0,0,0,0,0,0,0,0,0,0,0,0,0,0,0,0]} 1. d4 {[%emt 0:00:01]} Nf6 {[%emt 0:00:43]} 2. c4 {[%emt 0:00:10]} g6 {[%emt 0:00:11]} 3. g3 {[%emt 0:02:36]} Bg7 {[%emt 0:00:21]} 4. Bg2 {[%emt 0:00:06]} O-O {[%emt 0:00:23]} 5. Nc3 {[%emt 0:00:05]} d6 {[%emt 0:00:05]} 6. Nf3 {[%emt 0:01:09]} a5 {[%emt 0:00:08]} 7. O-O {[%emt 0:01:05]} Bf5 {[%emt 0:00:13]} 8. Nh4 {[%emt 0:09:16][%cal Oh4f5] Black must now prevent Nxf5!} Bc8 {[%emt 0:00:34] White is slightly better.} 9. b3 {[%emt 0:01:39]} Nbd7 {[%emt 0:15:32][%cal Bb8d7,Bd7e5,Be5c6,Bc6b4][%mdl 32]} 10. Ba3 {[%emt 0:13:24]} e5 {[%emt 0:29:14]} 11. dxe5 {[%emt 0:02:10]} Nxe5 {[%emt 0:00:06][%cal Oa5a4]} 12. Qc2 {[%emt 0:13:39]} Nc6 {[%emt 0:06:03]} 13. Rad1 {[%emt 0:10:01]} Bd7 {[%emt 0:03:57]} 14. h3 {[%emt 0:14:23]} Re8 {[%emt 0:06:53]} 15. Kh2 {[%emt 0:06:13]} Nb4 {[%emt 0:05:20]} 16. Qd2 {[%emt 0:12:21]} Bc6 {[%emt 0:00:48]} 17. Bb2 {[%emt 0:05:47]} Na6 {[%emt 0:10:23]} 18. Nd5 {[%emt 0:06:17]} Nc5 {[%emt 0:01:35]} 19. Qc2 {[%emt 0:00:34]} Nxd5 {[%emt 0:13:43]} 20. cxd5 {[%emt 0:00:05]} Bb5 {[%emt 0:00:03]} 21. Rfe1 {[%emt 0:00:30]} Bxb2 {[%emt 0:03:06]} 22. Qxb2 {[%emt 0:00:02]} a4 {[%emt 0:00:05]} 23. Nf3 {[%emt 0:02:10]} axb3 {[%emt 0:00:45]} 24. axb3 {[%emt 0:00:03]} Ne4 {[%emt 0:03:20]} 25. e3 {[%emt 0:00:58]} Bd7 {[%emt 0:08:27]} 26. Qc2 {[%emt 0:06:19]} c5 {[%emt 0:07:02]} 27. dxc6 {[%emt 0:00:08]} bxc6 {[%emt 0:02:45]} 28. Nd4 {[%emt 0:04:56][%csl LRc6,LRe4]} Qe7 {[%emt 0:00:22]} 29. f3 {[%emt 0:04:54]} Nc5 {[%emt 0:00:34]} 30. e4 {[%emt 0:02:04][%cal Be3e4,Be4e5][%mdl 32]} Reb8 {[%emt 0:03:09]} 31. f4 {[%emt 0:00:35]} Rb4 {[%emt 0:00:43]} 32. Re3 {[%emt 0:01:51]} Rab8 {[%emt 0:01:49]} 33. e5 {[%emt 0:04:21]} d5 {[%emt 0:01:02]} 34. Rc3 {[%emt 0:00:42]} Ne6 {[%emt 0:01:42]} 35. Nxc6 {[%emt 0:00:55]} Bxc6 {[%emt 0:00:05]} 36. Rxc6 {[%emt 0:00:01]} Rxb3 {[%emt 0:00:13]} 37. Rc8+ {[%emt 0:00:15]} (37. Bxd5 $2 {loses.} Rb2 38. Bxe6 Rxc2+ (38... Qxe6 $2 39. Rc3 $19) 39. Rxc2 Qxe6 $19 (39... fxe6 $2 40. Rd4 $19)) 37... Rxc8 {[%emt 0:03:05]} 38. Qxc8+ {[%emt 0:02:05]} Kg7 {[%emt 0:00:03]} 39. Rxd5 $2 {[%emt 0:01:01][%mdl 8192] [#]} (39. Bxd5 $11 {and White stays safe.} Rb2+ 40. Bg2) 39... Qb4 $2 {[%emt 0:01:24]} (39... Qa7 $1 $19 {[%cal Ra7f2]} 40. Qc2 Qe3) 40. Qc1 $1 $11 {[%emt 0:00:53] The position is equal.} Rb2 {[%emt 0:00:41][%cal Ob2g2] Wards off Qd2. ...Rxg2+! is the strong threat.} 41. Rd3 {[%emt 0:00:32]} Re2 {[%emt 0:01:25]} 42. Re3 {[%emt 0:01:24] Repels Qe4} Nxf4 {[%emt 0:01:56]} 43. Rxe2 {[%emt 0:00:12]} Nxe2 {[%emt 0:00:02][%mdl 4096] Endgame. KQB-KQN} 44. Qf1 {[%emt 0:00:15]} Nd4 {[%emt 0:00:17]} 45. Qf6+ {[%emt 0:00:05]} Kg8 {[%emt 0:00:04]} 46. Qd8+ {[%emt 0:00:02]} Kg7 {[%emt 0:00:04]} 47. Qf6+ {[%emt 0:00:02]} Kg8 {[%emt 0:00:02]} 48. Qd8+ {[%emt 0:00:02]} Kg7 {[%emt 0:00:05]} 49. Qf6+ {[%emt 0:00:11] Weighted Error Value: White=0.21 (precise) /Black=0.23 (precise) .  Loses game:     	White=1     	---        Missed win:     	---       	Black=1      Inaccurate:     	White=4     	Black=3      OK:         	White=19    	Black=19     Best:        	White=1     	Black=4      Strong:       	White=1     	---} 1/2-1/2

[Event "GCT Superbet Romania 2024"]
[Site "Bucharest"]
[Date "2024.06.30"]
[Round "5.4"]
[White "Giri, Anish"]
[Black "Firouzja, Alireza"]
[Result "1/2-1/2"]
[ECO "D45"]
[WhiteElo "2745"]
[BlackElo "2737"]
[Annotator "TA"]
[PlyCount "120"]
[EventDate "2024.06.24"]
[EventType "tourn"]
[EventCountry "ROU"]
[SourceTitle "playchess.com"]
[Source "ChessBase"]
[SourceQuality "1"]
[TimeControl "7200+30"]

{[%evp 63,120,0,0,0,28,0,0,0,0,1,0,7,8,8,8,8,8,8,8,8,8,8,0,8,8,8,8,0,0,0,0,0,0,0,0,0,0,0,0,0,0,0,0,0,0,0,0,0,0,0,0,0,0,0,0,0,0,0,0]} 1. d4 {[%emt 0:00:03]} Nf6 {[%emt 0:00:04]} 2. c4 {[%emt 0:00:04]} e6 {[%emt 0:00:04]} 3. Nf3 {[%emt 0:00:04]} d5 {[%emt 0:00:05]} 4. Nc3 {[%emt 0:00:04]} c6 {[%emt 0:01:57]} 5. e3 {[%emt 0:00:33]} Nbd7 {[%emt 0:00:09]} 6. Qc2 {[%emt 0:00:05]} Bd6 {[%emt 0:00:10]} 7. b3 {[%emt 0:00:07]} O-O {[%emt 0:00:57]} 8. Be2 {[%emt 0:00:11]} b6 {[%emt 0:00:17]} 9. O-O {[%emt 0:00:22]} Bb7 {[%emt 0:00:07]} 10. Bb2 {[%emt 0:00:03]} Qe7 {[%emt 0:10:34]} 11. Rad1 {[%emt 0:00:24]} Rad8 {[%emt 0:00:20]} 12. Rfe1 {[%emt 0:00:09]} Rfe8 {[%emt 0:00:18]} 13. Bf1 {[%emt 0:00:09] D45: Semi-Slav: 5 e3.} e5 {[%emt 0:07:33]} 14. dxe5 {[%emt 0:03:08]} Nxe5 {[%emt 0:01:42]} 15. Nd4 {[%emt 0:00:00] is now debated instead of 15.Nxe5.} dxc4 {[%emt 0:11:51]} 16. Nf5 {[%emt 0:00:00]} Qe6 {[%emt 0:00:53]} 17. Nxd6 {[%emt 0:00:21]} Rxd6 {[%emt 0:00:58]} 18. Rxd6 {[%emt 0:00:28]} Qxd6 {[%emt 0:00:05]} 19. Rd1 {[%emt 0:00:07]} cxb3 {[%emt 0:22:45]} 20. axb3 {[%emt 0:00:11]} Qe7 {[%emt 0:02:38]} 21. Ne4 {[%emt 0:01:15]} Nxe4 {[%emt 0:04:21]} 22. Qxe4 {[%emt 0:00:15]} f6 {[%emt 0:02:20]} 23. Bxe5 {[%emt 0:10:58]} Qxe5 {[%emt 0:10:07]} 24. Qxe5 {[%emt 0:32:40]} fxe5 {[%emt 0:00:47]} 25. Rd7 {[%emt 0:00:02]} Rb8 {[%emt 0:00:08]} 26. Bc4+ {[%emt 0:05:31]} Kh8 {[%emt 0:00:09]} 27. b4 $146 {[%emt 0:00:05]} ({Predecessor:} 27. Re7 c5 28. Rxe5 Bc6 29. f4 a5 30. Bd5 Be8 31. Re7 a4 32. bxa4 Bxa4 33. Rc7 {1-0 Parligras,M (2583)-Csonka,B (2496) Douglas Manx Liberty 2021 (2)}) 27... a5 {[%emt 0:05:48]} 28. bxa5 {[%emt 0:00:16]} bxa5 {[%emt 0:00:04]} 29. Re7 {[%emt 0:08:54]} a4 {[%emt 0:10:16]} 30. Rxe5 {[%emt 0:00:14]} a3 {[%emt 0:00:44]} 31. Ba2 {[%emt 0:25:49]} g6 {[%emt 0:07:53]} 32. h4 {[%emt 0:02:26]} Rd8 {[%emt 0:03:31]} 33. Re7 {[%emt 0:09:59]} Rd1+ {[%emt 0:04:00]} 34. Kh2 {[%emt 0:00:08]} Rd2 {[%emt 0:00:07]} 35. Bb3 {[%emt 0:01:50]} a2 {[%emt 0:01:28]} 36. Bxa2 {[%emt 0:00:58]} Rxa2 {[%emt 0:00:19]} 37. Rxb7 {[%emt 0:00:11]} Rxf2 {[%emt 0:00:05]} 38. Kg3 {[%emt 0:00:19]} Rf6 {[%emt 0:07:42]} 39. e4 {[%emt 0:03:18]} Kg8 {[%emt 0:01:04]} 40. Rc7 {[%emt 0:01:09]} h5 {[%emt 0:04:31]} 41. e5 {[%emt 0:00:47]} Rf5 {[%emt 0:00:40]} 42. Rxc6 {[%emt 0:01:48]} Kf7 {[%emt 0:00:14]} 43. Rc7+ {[%emt 0:00:15]} Kf8 {[%emt 0:00:38]} 44. Rc5 {[%emt 0:00:42]} Kf7 {[%emt 0:00:18]} 45. Kh3 {[%emt 0:00:27]} Ke6 {[%emt 0:00:53]} 46. Rc6+ {[%emt 0:00:03]} Kf7 $1 {[%emt 0:00:05]} 47. Rc7+ {[%emt 0:00:01]} Kf8 {[%emt 0:00:17]} 48. Rc5 {[%emt 0:00:02]} Kf7 {[%emt 0:00:10]} 49. g3 {[%emt 0:00:39]} Ke6 {[%emt 0:00:13]} 50. Rc6+ {[%emt 0:00:01]} Kf7 $1 {[%emt 0:00:06]} 51. Rc7+ {[%emt 0:00:01]} Kf8 {[%emt 0:00:11]} 52. Rc5 {[%emt 0:00:09]} Kf7 {[%emt 0:00:18]} 53. Rc7+ {[%emt 0:00:24]} Kf8 {[%emt 0:00:08]} 54. e6 {[%emt 0:00:11]} Re5 {[%emt 0:00:17]} 55. Rf7+ {[%emt 0:00:08]} Kg8 {[%emt 0:00:04]} 56. Re7 {[%emt 0:00:06]} Kf8 {[%emt 0:00:04]} 57. Rf7+ {[%emt 0:00:01]} Kg8 {[%emt 0:00:06]} 58. Re7 {[%emt 0:00:01]} Kf8 {[%emt 0:00:10]} 59. Rf7+ {[%emt 0:00:01]} Kg8 {[%emt 0:00:09]} 60. Re7 {[%emt 0:00:01]} Kf8 {[%emt 0:00:09]} 1/2-1/2